bitfinex/quotes_BTCUSD_20240627
["timestamp","ask_amount","ask_price","bid_price","bid_amount"]
[1719505480870,0.18720826,61809.0,61808.0,0.40861246]
[1719505481394,0.18820826,61809.0,61808.0,0.40861246]
[1719505481798,0.08820826,61809.0,61808.0,0.40861246]
[1719505494739,0.08820826,61809.0,61808.0,0.22601246]
[1719505495059,0.18820826,61809.0,61808.0,0.22601246]
[1719505497712,0.18904826,61809.0,61808.0,0.22601246]
[1719505500558,0.27684826,61809.0,61808.0,0.0120898]
[1719505502452,0.27684826,61809.0,61808.0,0.22601246]
[1719505503217,0.27484826,61809.0,61808.0,0.22401246]
[1719505503749,0.27484826,61809.0,61808.0,0.0140899]
[1719505504073,0.27484826,61809.0,61808.0,0.2180937]
[1719505504204,0.27484826,61809.0,61808.0,0.0140899]
[1719505504645,0.27484826,61809.0,61808.0,0.0100899]
[1719505505038,0.27484826,61809.0,61806.0,0.2040038]
[1719505505264,0.27484826,61809.0,61808.0,0.00883011]
[1719505505478,0.0938,61807.0,61806.0,0.2040038]
[1719505509799,0.0938,61807.0,61806.0,0.2060038]
[1719505510215,0.0938,61807.0,61806.0,0.2080038]
[1719505511186,0.0938,61807.0,61806.0,0.2168469]
[1719505521375,0.13635361,61807.0,61806.0,0.2168469]
[1719505521597,0.23635361,61807.0,61806.0,0.2168469]
[1719505522805,0.14255361,61807.0,61806.0,0.2168469]
[1719505523029,0.23635361,61807.0,61806.0,0.2168469]
[1719505523205,0.1938,61807.0,61806.0,0.2168469]
[1719505524083,0.0938,61807.0,61806.0,0.2168469]
[1719505529149,0.0938,61807.0,61806.0,0.3107469]
[1719505529776,0.0938,61807.0,61806.0,0.3116709]
[1719505530543,0.10084,61808.0,61807.0,0.2040038]
[1719505530718,0.19464,61808.0,61807.0,0.36630726]
[1719505530919,0.19464,61808.0,61807.0,0.37514871]
[1719505532147,0.19464,61808.0,61807.0,0.37614871]
[1719505532707,0.19464,61808.0,61807.0,0.29484525]
[1719505532924,0.19464,61808.0,61807.0,0.20984145]
[1719505533288,0.19464,61808.0,61807.0,0.20884145]
[1719505533682,0.19464,61808.0,61807.0,0.01384145]
[1719505534248,0.19464,61808.0,61807.0,0.21784525]
[1719505534857,0.19464,61808.0,61807.0,0.21984525]
[1719505537586,0.19464,61808.0,61807.0,0.21584145]
[1719505537966,0.19464,61808.0,61807.0,0.01584145]
[1719505538380,0.19464,61808.0,61807.0,0.21584145]
[1719505538650,0.19464,61808.0,61807.0,0.01584145]
[1719505540291,0.2159258,61803.0,61802.0,0.00917863]
[1719505540498,0.2159258,61803.0,61778.0,0.5691242]
[1719505540499,0.0801,61796.0,61785.0,0.04795347]
[1719505540706,0.2394156,61794.0,61785.0,0.04795347]
[1719505540912,0.2394156,61794.0,61784.0,0.1731]
[1719505540913,0.3394156,61793.0,61784.0,0.22105347]
[1719505541114,0.0938,61786.0,61785.0,0.04795347]
[1719505541502,0.2938,61786.0,61785.0,0.04795347]
[1719505541714,0.3938,61786.0,61785.0,0.04795347]
[1719505542901,0.3938,61786.0,61785.0,0.04995347]
[1719505543403,0.3938,61786.0,61785.0,0.04795347]
[1719505543608,0.3938,61786.0,61784.0,0.22105347]
[1719505543767,0.1,61785.0,61784.0,0.22105347]
[1719505547146,0.1938,61785.0,61784.0,0.22105347]
[1719505547957,0.1938,61785.0,61784.0,0.23007071]
[1719505548319,0.1938,61785.0,61780.0,0.04795347]
[1719505548320,0.2432,61785.0,61780.0,0.04795347]
[1719505548527,0.0938,61781.0,61778.0,0.04795347]
[1719505548761,0.0938,61779.0,61776.0,0.04795347]
[1719505548952,0.1432,61777.0,61776.0,0.04795347]
[1719505549266,0.4432,61777.0,61775.0,0.0124464]
[1719505549493,0.1,61776.0,61775.0,0.0124464]
[1719505549694,0.33613898,61776.0,61775.0,0.0124464]
[1719505550011,0.35913898,61776.0,61775.0,0.0124464]
[1719505551496,0.0822773,61776.0,61775.0,0.0124464]
[1719505551909,0.0822773,61776.0,61773.0,0.04394967]
[1719505551910,0.1999296,61769.0,61767.0,0.00924]
[1719505552063,0.05748967,61768.0,61760.0,0.04795347]
[1719505552265,0.0559446,61768.0,61763.0,0.0803]
[1719505552482,0.6786296,61775.0,61768.0,0.04795347]
[1719505552756,0.0938,61769.0,61768.0,0.04795347]
[1719505552951,0.0938,61769.0,61766.0,0.04795347]
[1719505553120,0.0938,61767.0,61766.0,0.04795347]
[1719505553945,0.0938,61767.0,61765.0,0.04795347]
[1719505554117,0.0938,61766.0,61763.0,0.12825347]
[1719505554460,0.05794838,61765.0,61762.0,0.04795347]
[1719505554600,0.18094838,61765.0,61763.0,0.04795347]
[1719505554820,0.2938,61764.0,61762.0,0.04795347]
[1719505555019,0.1938,61763.0,61762.0,0.04795347]
[1719505555782,0.1938,61763.0,61760.0,0.04394967]
[1719505555987,0.0938,61761.0,61760.0,0.04394967]
[1719505556363,0.0938,61761.0,61760.0,0.04795347]
[1719505556692,0.0938,61761.0,61760.0,0.04394967]
[1719505556824,0.0938,61761.0,61760.0,0.04795347]
[1719505557026,0.0938,61761.0,61760.0,0.04394967]
[1719505557227,0.0948,61761.0,61760.0,0.04394967]
[1719505557477,0.0948,61761.0,61759.0,0.04795347]
[1719505557678,0.0948,61761.0,61758.0,0.04795347]
[1719505557904,0.001,61761.0,61760.0,0.04795347]
[1719505558104,0.0958,61761.0,61760.0,0.04795347]
[1719505559396,0.0948,61761.0,61760.0,0.04795347]
[1719505560211,0.0948,61761.0,61755.0,0.0985]
[1719505560212,0.0948,61761.0,61758.0,0.04795347]
[1719505560423,0.0938,61759.0,61757.0,0.04394967]
[1719505560632,0.0938,61758.0,61757.0,0.04394967]
[1719505560980,0.0938,61758.0,61754.0,0.0762]
[1719505561200,0.0938,61755.0,61754.0,0.0762]
[1719505561951,0.2938,61755.0,61754.0,0.12415347]
[1719505562319,0.3938,61755.0,61753.0,0.04394967]
[1719505562440,0.1938,61754.0,61753.0,0.04795347]
[1719505562636,0.1938,61754.0,61753.0,0.04394967]
[1719505563056,0.1938,61754.0,61752.0,0.04795347]
[1719505564460,0.1938,61754.0,61753.0,0.04887747]
[1719505564586,0.1938,61754.0,61753.0,0.04487367]
[1719505565038,0.1938,61754.0,61753.0,0.000924]
[1719505567042,0.1938,61754.0,61753.0,0.00086876]
[1719505567190,0.1938,61754.0,61753.0,0.04882223]
[1719505567387,0.1938,61754.0,61753.0,0.04481843]
[1719505567590,0.1938,61754.0,61753.0,0.00086876]
[1719505568558,0.2331138,61754.0,61753.0,0.00086876]
[1719505570835,0.2331138,61754.0,61751.0,0.00924]
[1719505570836,0.34680417,61754.0,61751.0,0.00924]
[1719505571086,0.0159962,61751.0,61738.0,0.04795347]
[1719505571247,0.28245108,61753.0,61738.0,0.04795347]
[1719505571248,0.0938,61739.0,61738.0,0.04795347]
[1719505571649,0.2938,61739.0,61738.0,0.04795347]
[1719505571903,0.3938,61739.0,61738.0,0.04795347]
[1719505572655,0.5351,61739.0,61738.0,0.04795347]
[1719505573025,0.5361,61739.0,61736.0,0.22145347]
[1719505573232,0.1,61738.0,61733.0,0.04394967]
[1719505573409,0.1,61738.0,61732.0,0.0040038]
[1719505573410,0.2351,61734.0,61732.0,0.04795347]
[1719505573616,0.1,61733.0,61732.0,0.04795347]
[1719505574618,0.1,61733.0,61730.0,0.04795347]
[1719505574836,0.2351,61731.0,61729.0,0.04394967]
[1719505575044,0.2351,61731.0,61722.0,0.10374]
[1719505575045,0.3,61730.0,61722.0,0.10374]
[1719505575446,0.2351,61723.0,61722.0,0.15169347]
[1719505575645,0.1,61723.0,61722.0,0.41533591]
[1719505575825,0.1,61723.0,61722.0,0.49283591]
[1719505575826,0.3,61723.0,61722.0,0.49283591]
[1719505577884,0.301,61723.0,61722.0,0.49283591]
[1719505578525,0.3,61723.0,61722.0,0.49283591]
[1719505578790,0.301,61723.0,61722.0,0.49283591]
[1719505579744,0.302,61723.0,61722.0,0.49283591]
[1719505580151,0.302,61723.0,61722.0,0.69283591]
[1719505580357,0.302,61723.0,61722.0,0.49283591]
[1719505581380,0.302,61723.0,61722.0,0.66363591]
[1719505581548,0.01999792,61745.0,61743.0,0.04795347]
[1719505581549,0.2351,61744.0,61743.0,0.04795347]
[1719505581730,0.4351,61744.0,61743.0,0.04795347]
[1719505581933,0.45509792,61744.0,61743.0,0.04795347]
[1719505582978,0.4351,61744.0,61743.0,0.04795347]
[1719505583381,0.2,61744.0,61743.0,0.04795347]
[1719505583642,0.301,61744.0,61743.0,0.04795347]
[1719505583813,0.301,61744.0,61743.0,0.06795347]
[1719505584023,0.301,61744.0,61743.0,0.40219245]
[1719505584425,0.309,61744.0,61743.0,0.38319245]
[1719505585116,0.5361,61744.0,61743.0,0.21985347]
[1719505585313,0.5371,61744.0,61743.0,0.05695347]
[1719505586071,0.5371,61744.0,61743.0,0.05294967]
[1719505586652,0.5371,61744.0,61743.0,0.05695347]
[1719505586890,0.5371,61744.0,61743.0,0.009]
[1719505589053,0.5371,61744.0,61743.0,0.05695347]
[1719505589841,0.302,61744.0,61743.0,0.05695347]
[1719505591162,0.302,61744.0,61743.0,0.22655347]
[1719505591400,0.302,61744.0,61743.0,0.38889245]
[1719505591569,0.302,61744.0,61743.0,0.40889245]
[1719505592027,0.302,61744.0,61743.0,0.38889245]
[1719505592254,0.302,61744.0,61743.0,0.13195347]
[1719505592463,0.302,61744.0,61743.0,0.05695347]
[1719505592920,0.302,61744.0,61743.0,0.009]
[1719505593132,0.5876,61744.0,61743.0,0.009]
[1719505593549,0.68729791,61744.0,61743.0,0.009]
[1719505594080,0.70707799,61744.0,61743.0,0.009]
[1719505594285,0.90700759,61744.0,61743.0,0.009]
[1719505594487,0.9239052,61744.0,61743.0,0.009]
[1719505594893,0.97314961,61744.0,61743.0,0.009]
[1719505595095,0.26517021,61743.0,61731.0,0.04394967]
[1719505595329,0.2351,61732.0,61731.0,0.04394967]
[1719505595538,0.5351,61732.0,61731.0,0.04795347]
[1719505595740,0.5351,61732.0,61731.0,0.04394967]
[1719505595944,0.5351,61732.0,61731.0,0.04795347]
[1719505596141,0.5351,61732.0,61731.0,0.04394967]
[1719505596395,0.5351,61732.0,61722.0,0.00924]
[1719505596396,0.74957589,61732.0,61722.0,0.00924]
[1719505596595,0.2351,61723.0,61722.0,0.05719347]
[1719505596854,0.4351,61723.0,61722.0,0.05719347]
[1719505597026,0.5351,61723.0,61722.0,0.05719347]
[1719505597402,0.59855692,61723.0,61722.0,0.00924]
[1719505597566,0.62155692,61723.0,61722.0,0.00924]
[1719505598167,0.62155692,61723.0,61722.0,0.01224]
[1719505598412,0.62155692,61723.0,61722.0,0.06019347]
[1719505598531,0.62155692,61723.0,61722.0,0.05719347]
[1719505598532,0.5351,61723.0,61722.0,0.05719347]
[1719505598937,0.5361,61723.0,61722.0,0.05719347]
[1719505599337,0.5361,61723.0,61722.0,0.00924]
[1719505599542,0.5361,61723.0,61722.0,0.05719347]
[1719505600789,0.301,61723.0,61722.0,0.07719347]
[1719505600996,0.301,61723.0,61722.0,0.25819347]
[1719505601198,0.301,61723.0,61722.0,0.23819347]
[1719505601537,0.301,61723.0,61722.0,0.25819347]
[1719505601737,0.301,61723.0,61722.0,0.26119347]
[1719505601921,0.3,61723.0,61722.0,0.26119347]
[1719505602268,0.3,61723.0,61722.0,0.25819347]
[1719505602472,0.3,61723.0,61722.0,0.42353245]
[1719505602898,0.301,61723.0,61722.0,0.42053245]
[1719505606019,0.302,61723.0,61722.0,0.42953245]
[1719505608538,0.302,61723.0,61722.0,0.40953245]
[1719505608754,0.302,61723.0,61722.0,0.06619347]
[1719505609164,0.302,61723.0,61722.0,0.06614307]
[1719505612224,0.302,61723.0,61722.0,0.06213927]
[1719505612434,0.302,61723.0,61722.0,0.06614307]
[1719505612916,0.30195644,61723.0,61722.0,0.06614307]
[1719505613365,0.30195644,61723.0,61722.0,0.06213927]
[1719505613568,0.32738261,61723.0,61722.0,0.06614307]
[1719505621604,0.32738261,61723.0,61722.0,0.43568205]
[1719505621843,0.30195644,61723.0,61722.0,0.41568205]
[1719505624362,0.30195644,61723.0,61722.0,0.43568205]
[1719505624769,0.30195644,61723.0,61722.0,0.41568205]
[1719505625046,0.30195644,61723.0,61722.0,0.43568205]
[1719505625247,0.30195644,61723.0,61722.0,0.39125245]
[1719505625636,0.30195644,61723.0,61722.0,0.37125245]
[1719505626616,0.30195644,61723.0,61722.0,0.39125245]
[1719505626992,0.30195644,61723.0,61722.0,0.37125245]
[1719505628172,0.30195644,61723.0,61722.0,0.37217645]
[1719505628539,0.30279644,61723.0,61722.0,0.37217645]
[1719505628937,0.30279644,61723.0,61722.0,0.02263747]
[1719505629775,0.21272949,61728.0,61722.0,0.02263747]
[1719505629979,0.1,61727.0,61726.0,0.01271347]
[1719505630346,0.3,61727.0,61726.0,0.01271347]
[1719505630544,0.3,61727.0,61726.0,0.00870967]
[1719505630807,0.0965,61725.0,61722.0,0.01863367]
[1719505630982,0.2351,61723.0,61722.0,0.01863367]
[1719505631328,0.2351,61723.0,61722.0,0.00963367]
[1719505631734,0.2351,61723.0,61722.0,0.01363747]
[1719505631945,0.3351,61723.0,61722.0,0.01363747]
[1719505632276,0.3361,61723.0,61722.0,0.00963367]
[1719505632480,0.3361,61723.0,61722.0,0.000924]
[1719505632678,0.3361,61723.0,61722.0,0.00963367]
[1719505633134,0.3361,61723.0,61722.0,0.000924]
[1719505633549,0.3927,61723.0,61722.0,0.000924]
[1719505634303,0.3927,61723.0,61722.0,0.009924]
[1719505634304,0.49615312,61723.0,61722.0,0.009924]
[1719505634508,0.49615312,61723.0,61722.0,0.000924]
[1719505634509,0.49515312,61723.0,61722.0,0.000924]
[1719505635108,0.58805312,61723.0,61722.0,0.000924]
[1719505635316,0.93184254,61723.0,61722.0,0.000924]
[1719505635664,0.1505,61717.0,61713.0,0.0216864]
[1719505635845,0.2351,61714.0,61713.0,0.0216864]
[1719505636048,0.4227383,61714.0,61713.0,0.0216864]
[1719505636272,0.6227383,61714.0,61713.0,0.0216864]
[1719505638142,0.6237383,61714.0,61713.0,0.0236864]
[1719505638676,0.6237383,61714.0,61713.0,0.0216864]
[1719505641297,0.66747397,61714.0,61713.0,0.0216864]
[1719505642451,0.66747397,61714.0,61713.0,0.03439987]
[1719505642652,0.34473567,61714.0,61713.0,0.22079987]
[1719505642854,0.34473567,61714.0,61713.0,0.24079987]
[1719505643056,0.32117631,61714.0,61713.0,0.22079987]
[1719505643258,0.301,61714.0,61713.0,0.22079987]
[1719505643460,0.301,61714.0,61713.0,0.03439987]
[1719505646944,0.301,61714.0,61713.0,0.21629987]
[1719505647901,0.301,61714.0,61713.0,0.23629987]
[1719505648095,0.301,61714.0,61713.0,0.39863885]
[1719505648096,0.201,61714.0,61713.0,0.39863885]
[1719505648342,0.012,61714.0,61713.0,0.56943885]
[1719505648544,0.012,61714.0,61713.0,0.76943885]
[1719505648948,0.011,61714.0,61713.0,0.76943885]
[1719505649365,0.012,61714.0,61713.0,0.76943885]
[1719505650880,0.1,61732.0,61721.0,0.21601347]
[1719505651085,0.1,61732.0,61721.0,0.37835245]
[1719505651288,0.03879803,61724.0,61721.0,0.37835245]
[1719505651673,0.01689761,61733.0,61721.0,0.37835245]
[1719505652674,0.018,61722.0,61721.0,0.38735245]
[1719505653002,0.017,61722.0,61721.0,0.37835245]
[1719505654703,0.017,61722.0,61721.0,0.75515245]
[1719505654704,0.018,61722.0,61721.0,0.75515245]
[1719505655248,0.017,61722.0,61721.0,0.74915245]
[1719505655654,0.018,61722.0,61721.0,0.75515245]
[1719505656290,0.017,61722.0,61721.0,0.74915245]
[1719505658026,0.018,61722.0,61721.0,0.75415245]
[1719505658552,0.017,61722.0,61721.0,0.74915245]
[1719505658696,0.018,61722.0,61721.0,0.75415245]
[1719505660962,0.01884,61722.0,61721.0,0.75415245]
[1719505663468,0.01884,61722.0,61721.0,1.15415245]
[1719505663669,0.01884,61722.0,61721.0,1.38925245]
[1719505664139,0.01981038,61749.0,61748.0,0.01271347]
[1719505664337,0.01981038,61749.0,61748.0,0.03271347]
[1719505664485,0.0781,61755.0,61740.0,0.00323879]
[1719505664486,0.09790636,61755.0,61754.0,0.01271347]
[1719505664691,0.12715426,61755.0,61754.0,0.01271347]
[1719505665458,0.12715426,61755.0,61752.0,0.00870967]
[1719505665614,0.12715426,61755.0,61754.0,0.00870967]
[1719505665765,0.0781,61753.0,61744.0,0.00870967]
[1719505665966,0.1059,61754.0,61749.0,0.00870967]
[1719505665967,0.1053,61750.0,61749.0,0.00870967]
[1719505666168,0.3404,61750.0,61749.0,0.01271347]
[1719505666514,0.2053,61750.0,61749.0,0.01271347]
[1719505667997,0.2053,61750.0,61736.0,0.0785]
[1719505667998,0.2053,61750.0,61748.0,0.00870967]
[1719505668127,0.2053,61750.0,61749.0,0.00870967]
[1719505668323,0.2351,61749.0,61748.0,0.00870967]
[1719505668534,0.3351,61749.0,61748.0,0.01271347]
[1719505668935,0.1,61749.0,61748.0,0.01271347]
[1719505669543,0.1,61753.0,61752.0,0.01271347]
[1719505670457,0.1,61753.0,61752.0,0.00870967]
[1719505670688,0.1,61753.0,61750.0,0.00870967]
[1719505672101,0.106,61753.0,61750.0,0.00970967]
[1719505672965,0.106,61753.0,61752.0,0.00870967]
[1719505673297,0.106,61753.0,61752.0,0.01271347]
[1719505675870,0.006,61753.0,61752.0,0.01271347]
[1719505676116,0.106,61753.0,61752.0,0.01271347]
[1719505677057,0.106,61753.0,61752.0,0.10851347]
[1719505677058,0.1,61753.0,61752.0,0.10851347]
[1719505677261,0.01689761,61754.0,61753.0,0.01271347]
[1719505679480,0.01689761,61754.0,61753.0,0.00671347]
[1719505681251,0.01689761,61754.0,61753.0,0.02671347]
[1719505681455,0.01689761,61754.0,61753.0,0.00671347]
[1719505682944,0.01789761,61754.0,61753.0,0.01571347]
[1719505683573,0.01689761,61754.0,61753.0,0.00671347]
[1719505683777,0.01689761,61754.0,61753.0,0.01771347]
[1719505683778,0.01789761,61754.0,61753.0,0.01771347]
[1719505685488,0.01789761,61754.0,61753.0,0.03771347]
[1719505685693,0.01789761,61754.0,61753.0,0.20329086]
[1719505685694,0.001,61754.0,61753.0,0.20329086]
[1719505687363,0.001,61754.0,61753.0,0.30879086]
[1719505688178,0.001,61754.0,61753.0,0.55859086]
[1719505688376,0.001,61754.0,61753.0,0.75859086]
[1719505689942,0.03648207,61762.0,61761.0,0.21021347]
[1719505690126,0.03648207,61762.0,61761.0,0.37255245]
[1719505690355,0.2351,61769.0,61768.0,0.00671347]
[1719505690600,0.2351,61769.0,61753.0,0.014]
[1719505690601,0.1835,61768.0,61766.0,0.00671347]
[1719505690766,0.3351,61767.0,61766.0,0.00671347]
[1719505690977,0.1835,61766.0,61760.0,0.00671347]
[1719505691208,0.3351,61767.0,61763.0,0.00671347]
[1719505691209,0.1835,61764.0,61763.0,0.00671347]
[1719505691412,0.4186,61764.0,61763.0,0.00671347]
[1719505691589,0.5186,61764.0,61763.0,0.00671347]
[1719505692993,0.5186,61764.0,61742.0,0.75870346]
[1719505692994,0.5186,61764.0,61757.0,0.00671347]
[1719505693160,0.5186,61764.0,61753.0,0.000924]
[1719505693161,0.2351,61755.0,61753.0,0.000924]
[1719505693377,0.26277613,61763.0,61753.0,0.000924]
[1719505693378,0.4188,61754.0,61753.0,0.000924]
[1719505693742,0.5188,61754.0,61753.0,0.000924]
[1719505694132,0.19476953,61754.0,61753.0,0.000924]
[1719505695506,0.09476953,61754.0,61753.0,0.000924]
[1719505695711,0.19476953,61754.0,61753.0,0.000924]
[1719505696312,0.19476953,61754.0,61753.0,0.01063747]
[1719505696513,0.1,61754.0,61753.0,0.01063747]
[1719505696952,0.1,61760.0,61758.0,0.00671347]
[1719505697142,0.2862,61760.0,61759.0,0.00671347]
[1719505699873,0.2912,61760.0,61759.0,0.00671347]
[1719505700539,0.2862,61760.0,61759.0,0.00671347]
[1719505700728,0.2862,61760.0,61759.0,0.00771347]
[1719505702203,0.1,61760.0,61759.0,0.00771347]
[1719505702829,0.0298275,61761.0,61760.0,0.00671347]
[1719505702830,0.1298275,61761.0,61760.0,0.00671347]
[1719505703007,0.1,61763.0,61760.0,0.00671347]
[1719505703226,0.1,61763.0,61762.0,0.00671347]
[1719505703439,0.26389074,61763.0,61762.0,0.00671347]
[1719505704085,0.11694873,61763.0,61762.0,0.00671347]
[1719505704291,0.01694873,61763.0,61762.0,0.00671347]
[1719505704691,0.01694873,61763.0,61762.0,0.19981347]
[1719505704895,0.11694873,61763.0,61762.0,0.19981347]
[1719505705132,0.01694873,61763.0,61762.0,0.19981347]
[1719505706767,0.01894873,61763.0,61762.0,0.38215245]
[1719505706972,0.002,61763.0,61762.0,0.38215245]
[1719505707394,0.03609152,61764.0,61763.0,0.00671347]
[1719505707571,0.03609152,61764.0,61763.0,0.1922903]
[1719505707933,0.03609152,61764.0,61763.0,0.2767903]
[1719505708530,0.00184,61764.0,61763.0,0.3893903]
[1719505709999,0.00084,61764.0,61763.0,0.3753903]
[1719505710147,0.00184,61764.0,61763.0,0.3893903]
[1719505710712,0.00084,61764.0,61763.0,0.3753903]
[1719505711045,0.00184,61764.0,61763.0,0.3893903]
[1719505712725,0.00184,61764.0,61763.0,0.3693903]
[1719505712923,0.00184,61764.0,61763.0,0.3893903]
[1719505713101,0.00184,61764.0,61763.0,0.3693903]
[1719505713456,0.00184,61764.0,61763.0,0.36615245]
[1719505714178,0.00184,61764.0,61763.0,0.38615245]
[1719505714324,0.00184,61764.0,61763.0,0.36615245]
[1719505715904,0.00184,61764.0,61763.0,0.38615245]
[1719505717137,0.00184,61764.0,61763.0,0.37615245]
[1719505718707,0.00184,61764.0,61763.0,0.35615245]
[1719505721558,0.18654,61764.0,61763.0,0.014]
[1719505722020,0.28654,61764.0,61763.0,0.014]
[1719505722528,0.28554,61764.0,61753.0,0.000924]
[1719505722732,0.16381693,61761.0,61753.0,0.16326298]
[1719505722905,0.1,61763.0,61753.0,0.16326298]
[1719505722906,0.49891693,61760.0,61753.0,0.16326298]
[1719505723504,0.16381693,61759.0,61753.0,0.16326298]
[1719505723707,0.1,61758.0,61753.0,0.16326298]
[1719505723960,0.26381693,61758.0,61753.0,0.000924]
[1719505724130,0.3152,61755.0,61753.0,0.000924]
[1719505724309,0.1,61754.0,61753.0,0.000924]
[1719505726127,0.101,61754.0,61753.0,0.014924]
[1719505726726,0.10078042,61754.0,61753.0,0.014924]
[1719505727150,0.001,61754.0,61753.0,0.014924]
[1719505733215,0.1805,61754.0,61753.0,0.014924]
[1719505733417,0.2805,61754.0,61753.0,0.014924]
[1719505734522,0.101,61754.0,61753.0,0.014924]
[1719505734772,0.001,61754.0,61753.0,0.014924]
[1719505734940,0.101,61754.0,61753.0,0.014924]
[1719505736096,0.1,61755.0,61753.0,0.000924]
[1719505736586,0.001,61754.0,61753.0,0.009924]
[1719505736965,0.1,61755.0,61753.0,0.000924]
[1719505737752,0.3287148,61754.0,61733.0,0.1859]
[1719505738111,0.3287148,61754.0,61728.0,0.0792]
[1719505738112,0.2351,61734.0,61728.0,0.0792]
[1719505738341,0.2351,61734.0,61729.0,0.16233898]
[1719505738564,0.1,61733.0,61729.0,0.16233898]
[1719505739723,0.1,61733.0,61729.0,0.24364244]
[1719505739953,0.1848,61746.0,61730.0,0.02]
[1719505739954,0.1,61745.0,61730.0,0.02]
[1719505740195,0.1,61745.0,61731.0,0.16557846]
[1719505741150,0.1,61745.0,61736.0,0.08130346]
[1719505741334,0.1,61747.0,61738.0,0.1274]
[1719505741548,0.1,61747.0,61743.0,0.02]
[1719505741760,0.12959123,61754.0,61739.0,0.24463898]
[1719505742919,0.16365537,61754.0,61739.0,0.24463898]
[1719505743302,0.2351,61750.0,61739.0,0.24463898]
[1719505743621,0.1,61749.0,61739.0,0.24463898]
[1719505745728,0.1,61749.0,61739.0,0.24763898]
[1719505747008,0.1,61749.0,61739.0,0.003]
[1719505747233,0.1824,61748.0,61739.0,0.003]
[1719505747764,0.1,61747.0,61739.0,0.003]
[1719505748734,0.1,61749.0,61740.0,0.0809]
[1719505749709,0.1,61749.0,61741.0,0.1018]
[1719505750468,0.1,61749.0,61741.0,0.10175344]
[1719505753447,0.01694873,61748.0,61741.0,0.10175344]
[1719505753917,0.01694873,61748.0,61741.0,0.10475344]
[1719505755349,0.01694873,61748.0,61741.0,0.10175344]
[1719505755769,0.01694873,61748.0,61741.0,0.10575344]
[1719505756355,0.09109917,61750.0,61741.0,0.10575344]
[1719505758536,0.19109917,61750.0,61741.0,0.10175344]
[1719505759032,0.19109917,61750.0,61741.0,0.10375344]
[1719505759609,0.19109917,61750.0,61742.0,0.16233898]
[1719505759810,0.10084,61753.0,61742.0,0.16233898]
[1719505760022,0.1,61752.0,61742.0,0.16233898]
[1719505760220,0.14830237,61754.0,61742.0,0.16233898]
[1719505760487,0.14830237,61754.0,61744.0,0.0993]
[1719505763164,0.15130237,61754.0,61744.0,0.0993]
[1719505765220,0.15130237,61754.0,61745.0,0.0849]
[1719505766128,0.14830237,61754.0,61745.0,0.0849]
[1719505766855,0.16396057,61751.0,61747.0,0.1788]
[1719505767137,0.15130237,61754.0,61747.0,0.34113898]
[1719505767138,0.1,61750.0,61747.0,0.34113898]
[1719505767372,0.15130237,61754.0,61747.0,0.34113898]
[1719505767373,0.16396057,61753.0,61747.0,0.34113898]
[1719505767508,0.1,61751.0,61747.0,0.34113898]
[1719505768184,0.1,61751.0,61748.0,0.1773]
[1719505768590,0.1,61751.0,61748.0,0.1973]
[1719505769288,0.1,61751.0,61750.0,0.02]
[1719505769526,0.1,61751.0,61750.0,0.1973]
[1719505769757,0.03406414,61754.0,61751.0,0.02]
[1719505769758,0.1,61752.0,61751.0,0.02]
[1719505769986,0.1,61753.0,61752.0,0.1927]
[1719505770220,0.03406414,61754.0,61753.0,0.02]
[1719505770450,0.03406414,61754.0,61753.0,0.35503898]
[1719505773025,0.10084,61764.0,61762.0,0.02]
[1719505773026,0.00084,61764.0,61762.0,0.02]
[1719505773288,0.00084,61764.0,61763.0,0.16233898]
[1719505773781,0.00084,61764.0,61763.0,0.18233898]
[1719505773999,0.00084,61764.0,61763.0,0.33083898]
[1719505774228,0.00184,61764.0,61763.0,0.33083898]
[1719505774995,0.00084,61764.0,61763.0,0.33083898]
[1719505776387,0.03474747,61764.0,61763.0,0.33083898]
[1719505776664,0.00184,61764.0,61763.0,0.33983898]
[1719505780295,0.00184,61764.0,61763.0,0.009]
[1719505780565,0.23694,61764.0,61763.0,0.009]
[1719505780803,0.33694,61764.0,61763.0,0.009]
[1719505781732,0.10184,61764.0,61763.0,0.009]
[1719505781931,0.00184,61764.0,61763.0,0.17133898]
[1719505782169,0.10184,61764.0,61763.0,0.24963898]
[1719505782372,0.10184,61764.0,61763.0,0.36633898]
[1719505782601,0.10177731,61764.0,61763.0,0.36633898]
[1719505782805,0.10177731,61764.0,61763.0,0.34633898]
[1719505783211,0.00177731,61764.0,61763.0,0.34633898]
[1719505788561,0.03406232,61764.0,61763.0,0.34633898]
[1719505790806,0.03406232,61764.0,61763.0,0.36633898]
[1719505791753,0.03393343,61764.0,61763.0,0.36633898]
[1719505792968,0.03393343,61764.0,61763.0,0.34633898]
[1719505798128,0.20713343,61764.0,61763.0,0.009]
[1719505798338,0.30713343,61764.0,61763.0,0.009]
[1719505799348,0.23093343,61764.0,61763.0,0.009]
[1719505799563,0.13393343,61764.0,61763.0,0.009]
[1719505799767,0.13393343,61764.0,61763.0,0.089]
[1719505800610,0.22783343,61764.0,61763.0,0.009]
[1719505801485,0.22683343,61764.0,61760.0,0.0746]
[1719505801682,0.1,61763.0,61761.0,0.16233898]
[1719505802339,0.1,61763.0,61760.0,0.0746]
[1719505802581,0.0939,61761.0,61757.0,0.0805]
[1719505802837,0.0939,61761.0,61758.0,0.16233898]
[1719505803515,0.0939,61761.0,61758.0,0.18233898]
[1719505803927,0.1,61763.0,61762.0,0.02]
[1719505804145,0.03293343,61764.0,61762.0,0.18233898]
[1719505804413,0.03293343,61764.0,61763.0,0.35513898]
[1719505805516,0.03293343,61764.0,61763.0,0.35813898]
[1719505805711,0.00064842,61764.0,61763.0,0.35813898]
[1719505807049,0.00064842,61764.0,61763.0,0.35513898]
[1719505807255,0.00064842,61764.0,61763.0,0.36413898]
[1719505807256,0.00164842,61764.0,61763.0,0.36413898]
[1719505807869,0.00064842,61764.0,61763.0,0.35513898]
[1719505808286,0.00164842,61764.0,61763.0,0.36913898]
[1719505808798,0.00164842,61764.0,61763.0,0.74013898]
[1719505809472,0.00164842,61764.0,61763.0,0.94013898]
[1719505810340,0.00164842,61764.0,61763.0,0.92613898]